bitfinex-derivatives/quotes_ETHF0:USTF0_20250316
["timestamp","ask_amount","ask_price","bid_price","bid_amount"]
[1742137253620,3.18424,1894.9,1894.8,1.3425]
[1742137253931,0.6939,1895.3,1894.8,1.69642644]
[1742137254229,1.05543,1895.1,1895.0,3.2078]
[1742137254824,2.47743,1895.1,1895.0,1.4591]
[1742137256426,1.05554,1894.9,1894.8,3.56172644]
[1742137256626,2.51272,1895.0,1894.8,4.61732644]
[1742137256826,2.51272,1895.0,1894.9,1.4004]
[1742137260226,1.05566,1894.7,1894.6,4.22954953]
[1742137260625,1.05566,1894.7,1894.6,3.56964953]
[1742137260826,1.05566,1894.7,1894.6,0.36184953]
[1742137261225,1.05566,1894.7,1894.6,1.41754953]
[1742137261528,1.05566,1894.7,1894.6,0.36184953]
[1742137261716,1.05559,1894.9,1894.6,3.56964953]
[1742137261918,1.0556,1894.8,1894.7,3.79344]
[1742137262426,2.39219,1894.9,1894.7,3.79344]
[1742137262626,2.39219,1894.9,1894.8,1.4539]
[1742137264127,4.83453,1895.0,1894.8,2.5095]
[1742137264324,1.05554,1894.9,1894.8,2.5095]
[1742137264525,1.05554,1894.9,1894.8,1.0556]
[1742137265026,1.05554,1894.9,1894.7,2.45901]
[1742137265425,1.0556,1894.8,1894.7,2.45901]
[1742137266620,1.0556,1894.8,1894.7,1.4034]
[1742137266827,1.05566,1894.7,1894.6,0.36184953]
[1742137267033,3.87156,1894.7,1894.6,0.36184953]
[1742137271034,3.87156,1894.7,1894.6,0.00792309]
[1742137272035,3.87156,1894.7,1894.6,1.06363309]
[1742137272230,3.87156,1894.7,1894.6,0.00792309]
[1742137273731,1.05582,1894.4,1894.3,0.6963]
[1742137275634,1.05582,1894.4,1894.2,4.62293851]
[1742137275635,1.05588,1894.3,1894.2,3.56700851]
[1742137275830,3.12928,1894.3,1894.2,0.00528207]
[1742137276335,1.05593,1894.2,1894.1,0.35392644]
[1742137276639,2.43863,1894.2,1894.1,0.35392644]
[1742137276930,2.43863,1894.2,1894.1,1.40991644]
[1742137277335,2.43863,1894.2,1894.1,0.35392644]
[1742137278837,1.05599,1894.1,1894.0,0.6912]
[1742137279537,1.05599,1894.2,1894.1,1.05599]
[1742137279724,1.05594,1894.3,1894.2,1.05593]
[1742137279927,1.05599,1894.2,1894.1,1.05596]
[1742137280145,1.05599,1894.2,1894.0,3.899]
[1742137280146,1.05599,1894.1,1894.0,3.899]
[1742137280334,1.78649,1894.1,1894.0,0.6912]
[1742137280736,1.78649,1894.1,1894.0,2.0682]
[1742137281535,3.21619,1894.1,1894.0,2.0682]
[1742137283434,3.21619,1894.1,1894.0,1.377]
[1742137283637,0.7021,1894.2,1894.0,5.64085]
[1742137283839,3.1073,1894.3,1894.2,1.05593]
[1742137284044,1.05588,1894.3,1894.2,1.05593]
[1742137284544,1.05588,1894.3,1894.2,0.7079]
[1742137284938,1.05588,1894.3,1894.2,3.15783]
[1742137285138,1.05588,1894.3,1894.2,2.1019]
[1742137285448,1.05588,1894.3,1894.2,1.394]
[1742137288242,1.05605,1894.0,1893.9,0.35392644]
[1742137288537,1.05605,1894.0,1893.9,1.81842644]
[1742137289139,2.51455,1894.0,1893.9,1.4645]
[1742137289736,1.05605,1894.0,1893.9,2.5206]
[1742137289936,1.05601,1894.1,1894.0,1.05605]
[1742137290135,1.05601,1894.1,1894.0,3.18925]
[1742137291339,1.05601,1894.1,1894.0,2.1332]
[1742137291646,1.05601,1894.1,1894.0,3.18925]
[1742137291853,2.48401,1894.1,1894.0,2.1332]
[1742137292838,2.48401,1894.1,1894.0,1.4453]
[1742137295140,1.05599,1894.1,1894.0,5.70909]
[1742137295439,1.05599,1894.1,1894.0,2.50129]
[1742137295853,3.696,1894.3,1894.1,1.05599]
[1742137296033,1.05593,1894.2,1894.1,1.05599]
[1742137296449,2.39733,1894.2,1894.1,1.05599]
[1742137296747,1.05599,1894.1,1894.0,0.35392644]
[1742137296940,2.39739,1894.1,1894.0,0.35392644]
[1742137297641,1.05599,1894.1,1894.0,1.40997644]
[1742137298751,1.05597,1894.2,1894.1,1.05597]
[1742137298943,1.05599,1894.1,1894.0,4.61772644]
[1742137299243,1.05599,1894.1,1894.0,0.35392644]
[1742137303047,2.48659,1894.1,1894.0,0.35392644]
[1742137306550,1.05605,1894.0,1893.9,0.35392644]
[1742137306753,3.15275,1894.0,1893.9,0.35392644]
[1742137308760,1.0561,1893.9,1893.8,3.8878]
[1742137309053,2.4806,1893.9,1893.8,3.8878]
[1742137309651,2.4806,1893.9,1893.8,3.2078]
[1742137309957,1.05616,1893.8,1893.7,0.35392644]
[1742137310161,2.48066,1893.8,1893.7,0.35392644]
[1742137311355,1.05616,1893.8,1893.7,0.35392644]
[1742137311560,1.05616,1893.8,1893.7,1.71982644]
[1742137312255,1.05616,1893.8,1893.7,1.3659]
[1742137316963,1.05616,1893.8,1893.7,2.42211]
[1742137317261,1.05616,1893.8,1893.7,1.3659]
[1742137317457,1.05616,1893.8,1893.7,2.42211]
[1742137317666,1.05614,1893.9,1893.8,1.05616]
[1742137317867,1.05614,1893.9,1893.8,2.39886]
[1742137318666,1.05614,1893.9,1893.8,1.3427]
[1742137318963,2.40184,1893.9,1893.8,2.39886]
[1742137319166,2.40184,1893.9,1893.8,1.3427]
[1742137319755,2.40184,1893.9,1893.8,2.39886]
[1742137320465,2.40184,1893.9,1893.8,1.3427]
[1742137320863,1.05621,1893.7,1893.6,0.35392644]
[1742137321068,3.20636,1893.8,1893.7,1.449]
[1742137321268,1.05616,1893.8,1893.7,1.449]
[1742137322557,0.6871,1894.0,1893.7,1.449]
[1742137322762,0.6871,1894.0,1893.7,3.23217]
[1742137323058,1.05616,1893.8,1893.7,1.449]
[1742137324463,4.70416,1893.8,1893.5,1.02592644]
[1742137324665,1.05627,1893.6,1893.5,1.71712644]
[1742137325072,1.78057,1893.6,1893.5,1.3632]
[1742137325568,1.05632,1893.5,1893.4,0.35392644]
[1742137325873,1.05638,1893.4,1893.3,1.07962644]
[1742137326368,1.05638,1893.4,1893.3,0.35392644]
[1742137326670,1.06427309,1893.5,1893.4,1.05638]
[1742137326966,0.00792309,1893.5,1893.4,3.8876]
[1742137327170,0.00792309,1893.5,1893.4,4.5519]
[1742137327171,1.06424309,1893.5,1893.4,4.5519]
[1742137327365,1.06424309,1893.5,1893.4,5.60828]
[1742137327559,1.06424309,1893.5,1893.4,4.5519]
[1742137327765,1.06424309,1893.5,1893.4,5.60828]
[1742137327965,0.00792309,1893.5,1893.4,5.60828]
[1742137328266,1.05632,1893.5,1893.4,4.5519]
[1742137328468,1.05632,1893.5,1893.4,5.60828]
[1742137328668,1.05631,1893.6,1893.5,1.0563]
[1742137328867,0.6637,1893.9,1893.4,8.2069]
[1742137329172,1.05621,1893.7,1893.6,4.26401]
[1742137329566,0.6637,1893.9,1893.7,1.05621]
[1742137329567,1.06412309,1893.8,1893.7,1.05621]
[1742137329766,1.05621,1893.7,1893.6,4.26401]
[1742137329975,1.05621,1893.7,1893.6,3.2078]
[1742137330166,1.05621,1893.7,1893.6,4.26407]
[1742137330367,0.00792309,1893.8,1893.7,1.05621]
[1742137331469,0.00792309,1893.8,1893.7,1.41013644]
[1742137331867,1.05593,1894.2,1894.1,1.05599]
[1742137332074,1.05599,1894.1,1894.0,4.26379]
[1742137332872,1.05597,1894.2,1894.1,1.05596]
[1742137333070,1.06389309,1894.2,1894.1,1.05596]
[1742137333376,1.05599,1894.1,1894.0,3.2078]
[1742137334375,1.74819,1894.1,1894.0,3.2078]
[1742137334577,1.05599,1894.1,1894.0,3.2078]
[1742137334973,1.05605,1894.0,1893.9,0.35392644]
[1742137335179,1.73325,1894.0,1893.9,0.35392644]
[1742137335771,1.05632,1893.5,1893.4,0.35392644]
[1742137335978,1.05649,1893.2,1893.1,0.35392644]
[1742137336579,1.05672,1892.8,1892.7,1.08252644]
[1742137336779,1.05669,1892.9,1892.7,1.08252644]
[1742137337082,3.667,1893.2,1892.9,1.05664]
[1742137337083,0.00792309,1893.0,1892.9,1.05664]
[1742137337283,0.00792309,1893.0,1892.9,1.41056644]
[1742137337574,0.00792309,1893.0,1892.9,2.06940205]
[1742137337983,1.05642,1893.4,1893.2,1.05646]
[1742137338171,1.05644,1893.3,1893.2,3.56172644]
[1742137338775,1.05644,1893.3,1893.2,0.35392644]
[1742137339283,4.26424,1893.3,1893.2,0.35392644]
[1742137339583,1.05669,1892.9,1892.7,1.08252644]
[1742137339768,1.05671,1892.9,1892.8,3.2078]
[1742137340782,3.681,1893.1,1892.8,3.2078]
[1742137340969,1.05666,1892.9,1892.8,5.68792]
[1742137341174,1.05656,1893.1,1892.9,1.05666]
[1742137341374,1.05656,1893.1,1893.0,3.2078]
[1742137341878,1.05666,1892.9,1892.8,3.56172644]
[1742137342485,1.05653,1893.2,1893.0,1.05657]
[1742137342675,1.05653,1893.2,1893.0,4.26437]
[1742137342983,5.02862309,1893.4,1893.0,4.26437]
[1742137342984,1.05646,1893.3,1893.2,1.05649]
[1742137343172,1.34762309,1893.4,1893.2,1.05649]
[1742137343173,0.00792309,1893.4,1893.3,1.05644]
[1742137343683,0.00792309,1893.4,1893.3,1.41036644]
[1742137343886,1.06430309,1893.4,1893.3,0.35392644]
[1742137344177,0.00792309,1893.4,1893.3,1.41036644]
[1742137344477,0.00792309,1893.4,1893.3,3.91036644]
[1742137344675,1.0561,1893.9,1893.7,1.0562]
[1742137344875,1.0561,1893.9,1893.8,0.35392644]
[1742137345384,2.4996,1893.9,1893.8,0.35392644]
[1742137346082,1.05616,1893.8,1893.7,0.00792309]
[1742137346282,3.20576,1893.8,1893.7,0.00792309]
[1742137348884,2.1496,1893.8,1893.7,0.00792309]
[1742137349083,1.05616,1893.8,1893.7,0.00792309]
[1742137350392,1.05616,1893.8,1893.7,0.36184953]
[1742137350786,6.76396,1893.8,1893.7,9.53e-06]
[1742137351088,1.05638,1893.4,1893.3,3.2078]
[1742137351780,2.40938,1893.4,1893.3,3.2078]
[1742137351986,1.05644,1893.3,1893.2,5.98]
[1742137352187,1.05655,1893.1,1893.0,5.98]
[1742137352988,1.05655,1893.1,1893.0,7.0366]
[1742137353189,1.05651,1893.2,1893.1,1.05654]
[1742137353384,1.05651,1893.2,1893.1,3.2078]
[1742137353686,1.05647,1893.3,1893.1,4.26435]
[1742137353887,1.05647,1893.3,1893.2,7.03649]
[1742137354085,1.05647,1893.3,1893.2,5.98]
[1742137354280,1.05647,1893.3,1893.2,7.03649]
[1742137354481,1.05641,1893.4,1893.3,1.05644]
[1742137354788,1.05634,1893.5,1893.3,10.9548]
[1742137354985,1.05634,1893.5,1893.3,9.8984]
[1742137355291,1.05634,1893.5,1893.4,1.05638]
[1742137355483,1.05634,1893.5,1893.4,5.98]
[1742137355684,2.0434,1893.7,1893.4,7.76786]
[1742137355885,1.05632,1893.5,1893.4,7.76786]
[1742137356190,1.05631,1893.6,1893.4,7.76786]
[1742137356688,1.3496,1893.7,1893.4,6.7115]
[1742137356988,1.05627,1893.6,1893.5,4.26409]
[1742137357292,1.05627,1893.6,1893.5,4.26412]
[1742137357491,1.05613,1893.9,1893.8,1.05614]
[1742137357795,1.05621,1893.7,1893.6,5.98]
[1742137358092,1.05621,1893.7,1893.6,7.03627]
[1742137358389,1.4464,1893.8,1893.6,5.98]
[1742137358594,1.05621,1893.7,1893.6,7.03622]
[1742137358793,1.05621,1893.7,1893.6,5.98]
[1742137359382,1.73081,1893.7,1893.6,5.98]
[1742137360087,3.18971,1893.7,1893.6,5.98]
[1742137362199,1.05627,1893.6,1893.5,4.96681]
[1742137362394,3.18974,1893.7,1893.6,1.05627]
[1742137362906,1.05613,1893.9,1893.5,3.9105]
[1742137363195,2.46103,1893.9,1893.7,4.26396]
[1742137363702,2.46103,1893.9,1893.7,3.2078]
[1742137363998,2.46104,1893.9,1893.8,1.05616]
[1742137365099,1.05616,1893.8,1893.7,4.26399]
[1742137366291,2.46105,1893.9,1893.8,1.05616]
[1742137367397,1.05616,1893.8,1893.7,4.26397]
[1742137367789,1.4049,1893.9,1893.7,3.2078]
[1742137368093,1.05627,1893.6,1893.5,3.2078]
[1742137368992,1.78317,1893.6,1893.5,3.2078]
[1742137369798,1.78317,1893.6,1893.5,4.26412]
[1742137370487,0.7269,1893.6,1893.5,4.26412]
[1742137370691,1.05626,1893.7,1893.6,1.05627]
[1742137371295,1.05621,1893.7,1893.6,1.05627]
[1742137372294,1.05614,1893.9,1893.8,1.05616]
[1742137372494,3.10651309,1894.0,1893.9,1.0561]
[1742137373590,1.76037309,1894.0,1893.9,1.0561]
[1742137373792,1.76037309,1894.0,1893.9,1.7267]
[1742137374006,35.60157,1894.4,1893.9,6.6506]
[1742137374197,1.056,1894.1,1894.0,10.24381]
[1742137374994,1.056,1894.1,1894.0,9.1878]
[1742137375404,1.056,1894.1,1894.0,10.24385]
[1742137375704,1.05599,1894.1,1894.0,10.24385]
[1742137376898,2.38849309,1894.2,1894.1,1.05599]
[1742137377095,1.05599,1894.1,1894.0,10.24382]
[1742137377991,2.38848309,1894.2,1894.1,1.05599]
[1742137378195,1.0559,1894.3,1894.1,5.98]
[1742137378403,1.05605,1894.0,1893.9,5.98792309]
[1742137378803,1.05605,1894.0,1893.9,7.04402309]
[1742137379003,1.05605,1894.0,1893.9,5.98792309]
[1742137379401,1.05632,1893.5,1893.4,9.1878]
[1742137380499,1.05632,1893.5,1893.4,10.24418]
[1742137380704,1.05631,1893.6,1893.5,1.05632]
[1742137381005,1.05632,1893.5,1893.4,10.24414]
[1742137381799,1.05631,1893.6,1893.5,1.05631]
[1742137382100,1.05632,1893.5,1893.4,10.24413]
[1742137383005,1.72381,1893.6,1893.5,1.05632]
[1742137383304,3.15101,1893.6,1893.5,1.05632]
[1742137383806,1.05625,1893.7,1893.6,1.05627]
[1742137383999,1.05625,1893.7,1893.6,4.26407]
[1742137385109,1.05625,1893.7,1893.6,3.2078]
[1742137385410,1.05632,1893.5,1893.4,9.1878]
[1742137386107,1.78242,1893.5,1893.4,9.1878]
[1742137386797,2.50022,1893.5,1893.4,9.1878]
[1742137388108,1.78242,1893.5,1893.4,9.1878]
[1742137388498,3.13052,1893.5,1893.4,10.24418]
[1742137389109,1.78242,1893.5,1893.4,10.24418]
[1742137389310,2.40439,1893.6,1893.5,1.05632]
[1742137389608,1.05627,1893.6,1893.5,1.05632]
[1742137389908,2.137,1893.7,1893.6,1.05627]
[1742137390604,3.19326,1893.7,1893.6,1.05627]
[1742137390803,1.05629,1893.6,1893.5,1.05628]
[1742137391004,1.05632,1893.5,1893.4,10.92864]
[1742137391601,1.4289,1893.6,1893.4,10.92864]
[1742137391802,0.7081,1893.7,1893.6,1.05627]
[1742137392010,1.74001,1893.9,1893.8,1.05616]
[1742137392210,1.05616,1893.8,1893.7,6.6621]
[1742137392512,2.48506,1893.8,1893.7,5.98]
[1742137393510,2.48506,1893.8,1893.7,7.03621]
[1742137393904,1.05613,1893.9,1893.8,1.05616]
[1742137394204,1.05613,1893.9,1893.8,1.76916]
[1742137394405,0.00792309,1894.1,1893.8,9.9008]
[1742137394606,1.06391309,1894.1,1893.9,1.05606]
[1742137394809,0.00792309,1894.1,1893.8,14.2999]
[1742137395009,0.00792309,1894.1,1894.0,3.2078]
[1742137395201,0.00792309,1894.1,1894.0,4.26385]
[1742137395598,0.00792309,1894.1,1894.0,12.74385]
[1742137395799,3.92211,1894.5,1894.3,1.05585]
[1742137396011,3.92211,1894.5,1894.3,4.26365]
[1742137396208,3.92208,1894.5,1894.3,3.2078]
[1742137396412,3.92208,1894.5,1894.3,4.26365]
[1742137396611,0.7168,1894.5,1894.4,1.05582]
[1742137397108,0.00792309,1894.6,1894.5,1.05577]
[1742137397313,0.00792309,1894.6,1894.5,4.26357]
[1742137398814,0.00792309,1894.6,1894.5,10.24357]
[1742137399311,2.39341,1895.0,1894.8,1.05557]
[1742137399612,1.05554,1894.9,1894.7,4.26342]
[1742137399914,2.39342,1895.0,1894.8,1.0556]
[1742137400499,1.05554,1894.9,1894.7,4.26342]
[1742137400704,1.393,1894.9,1894.8,1.0556]
[1742137400906,1.05552,1895.0,1894.8,8.4052]
[1742137401213,1.05554,1894.9,1894.8,7.3496]
[1742137401409,1.393,1895.0,1894.9,1.05554]
[1742137401609,1.393,1895.0,1894.9,5.63294]
[1742137402112,0.67682309,1895.1,1895.0,1.05549]
[1742137402411,0.67682309,1895.1,1895.0,8.40599]
[1742137402800,0.00792309,1895.1,1895.0,8.40599]
[1742137403006,0.00792309,1895.1,1895.0,9.08529]
[1742137403409,6.8668,1895.6,1895.3,1.0553]
[1742137403410,1.05526,1895.5,1895.3,1.0553]
[1742137403612,2.47226,1895.5,1895.4,1.3705]
[1742137403809,1.417,1895.5,1895.4,4.5783]
[1742137404011,2.47221,1895.5,1895.4,1.3705]
[1742137406011,1.417,1895.5,1895.4,2.42577]
[1742137406210,1.05491,1896.1,1895.4,16.7143]
[1742137406517,2.45526,1896.0,1895.8,1.05502]
[1742137406814,2.45526,1896.0,1895.9,2.38619]
[1742137406815,1.4003,1896.0,1895.9,2.38619]
[1742137407010,0.6789,1896.1,1895.9,4.539]
[1742137407206,1.05476,1896.3,1896.0,5.98]
[1742137407412,1.4003,1896.3,1896.1,4.539]
[1742137407614,1.05476,1896.3,1896.2,1.3312]
[1742137407812,1.4003,1896.4,1896.3,1.05476]
[1742137408016,1.4003,1896.4,1896.3,5.98]
[1742137408813,2.45501,1896.4,1896.3,5.98]
[1742137409015,1.4003,1896.4,1896.3,5.98]
[1742137409619,1.4003,1896.4,1896.3,10.24256]
[1742137409807,1.05464,1896.6,1896.3,9.1878]
[1742137410013,1.4143,1896.8,1896.5,4.26244]
[1742137410320,1.05454,1896.7,1896.6,1.3877]
[1742137410817,0.6595,1896.9,1896.6,1.3877]
[1742137411013,0.6595,1896.9,1896.8,1.05449]
[1742137411212,0.6595,1896.9,1896.7,3.2078]
[1742137411213,1.4461,1897.0,1896.7,3.2078]
[1742137411416,0.6759,1897.4,1896.9,3.2078]
[1742137411711,3.2078,1898.1,1897.3,5.84329]
[1742137411916,1.05394,1897.8,1897.6,1.05403]
[1742137412214,4.6539,1898.1,1897.7,1.4206]
[1742137412406,1.05393,1897.8,1897.7,1.4206]
[1742137412814,1.05391,1897.9,1897.7,1.4206]
[1742137413120,1.05399,1897.7,1897.6,5.98]
[1742137413515,2.50007,1897.8,1897.6,5.98]
[1742137413714,1.05397,1897.8,1897.7,1.4206]
[1742137413917,1.4461,1898.0,1897.7,1.4206]
[1742137414120,1.4461,1898.0,1897.7,10.6084]
[1742137414421,2.49994,1898.0,1897.7,11.66236]
[1742137414613,1.4461,1898.0,1897.8,1.05393]
[1742137414812,1.05382,1898.0,1897.9,1.4612]
[1742137415115,0.6595,1898.2,1897.7,9.1878]
[1742137415116,1.05393,1897.8,1897.7,5.98]
[1742137415421,1.05395,1897.8,1897.5,13.93080309]
[1742137415625,1.054,1897.7,1897.5,13.93080309]
[1742137415921,1.05397,1897.8,1897.5,13.93077309]
[1742137416111,1.05391,1897.9,1897.6,2.51523]
[1742137416313,1.4024,1898.1,1897.7,4.669]
[1742137416620,1.05393,1897.8,1897.7,4.669]
[1742137416820,1.05391,1897.9,1897.7,1.4612]
[1742137417117,1.4024,1898.1,1897.9,1.05384]
[1742137417320,1.05376,1898.1,1898.0,1.3535]
[1742137417520,1.4061,1898.3,1898.0,4.5613]
[1742137417724,0.07905138,1898.4,1898.1,3.683]
[1742137417912,1.13266138,1898.4,1898.2,4.5613]
[1742137418114,1.13267138,1898.4,1898.2,4.5613]
[1742137418409,0.07905138,1898.4,1898.2,4.5613]
[1742137418721,0.02167,1899.0,1898.3,5.98]
[1742137418917,0.02167,1899.0,1898.7,4.26122]
[1742137419121,1.05332,1898.9,1898.8,1.3535]
[1742137419316,1.05332,1898.9,1898.8,7.3335]
[1742137419622,1.05332,1898.9,1898.8,5.98]
[1742137419812,4.26112,1898.9,1898.8,4.88161]
[1742137420020,1.05338,1898.8,1898.7,0.00790201]
[1742137420216,2.1444,1898.8,1897.9,5.56975861]
[1742137420523,1.05382,1898.0,1897.9,3.75835861]
[1742137421028,1.05393,1897.8,1897.7,3.2078]
[1742137421514,1.05399,1897.7,1897.6,0.00790201]
[1742137421825,0.00783175,1897.9,1897.6,3.21570201]
[1742137422022,0.00783175,1897.9,1897.8,4.26173]
[1742137422219,1.05363,1898.4,1897.8,5.56975861]
[1742137422419,1.4391,1898.5,1898.1,3.2078]
[1742137422732,1.75876,1898.7,1898.4,1.05356]
[1742137422920,1.05363,1898.4,1898.2,7.13064861]
[1742137423125,1.05357,1898.5,1898.3,5.68785]
[1742137423330,1.05357,1898.5,1898.4,1.4264]
[1742137423525,1.05352,1898.6,1898.4,1.4264]
[1742137423827,2.1444,1898.7,1898.4,2.47999]
[1742137424027,0.02167,1899.0,1898.7,1.0534]
[1742137424322,2.48178,1899.0,1898.8,1.4264]
[1742137424526,1.05332,1898.9,1898.8,1.4264]
[1742137424726,1.05338,1898.8,1898.7,0.00790201]
[1742137426025,3.14118,1898.8,1898.7,7.026e-05]
[1742137427620,6.31668,1898.8,1898.7,7.026e-05]
[1742137428522,3.81668,1898.8,1898.7,7.026e-05]
[1742137428923,6.31668,1898.8,1898.7,7.026e-05]
[1742137429320,3.81668,1898.8,1898.7,7.026e-05]
[1742137433336,7.55068,1898.8,1898.7,7.026e-05]
[1742137434524,10.05068,1898.8,1898.7,7.026e-05]
[1742137434926,7.55068,1898.8,1898.7,7.026e-05]
[1742137435822,3.81668,1898.8,1898.7,7.026e-05]
[1742137438628,3.13568,1898.8,1898.7,7.026e-05]
[1742137438834,1.05338,1898.8,1898.7,7.026e-05]
[1742137439036,1.05338,1898.8,1898.7,3.20787026]
[1742137439341,1.05338,1898.8,1898.7,7.026e-05]
[1742137439541,2.40648,1898.8,1898.7,7.026e-05]
[1742137439737,2.40648,1898.8,1898.7,1.34017026]
[1742137440136,0.00783175,1898.9,1898.8,1.05338]
[1742137440543,1.05338,1898.8,1898.7,1.34017026]
[1742137440936,1.05338,1898.8,1898.7,1.99318315]
[1742137441135,2.40648,1898.8,1898.7,1.99318315]
[1742137441643,2.40648,1898.8,1898.7,1.34017026]
[1742137442040,2.40648,1898.8,1898.7,7.026e-05]
[1742137442340,3.09948,1898.8,1898.7,7.026e-05]
[1742137442934,4.26118,1898.8,1898.7,7.026e-05]
[1742137443134,6.29698,1898.8,1898.7,7.026e-05]
[1742137443541,14.62298,1898.8,1898.7,7.026e-05]
[1742137443944,1.05376,1898.1,1898.0,3.1509]
[1742137444149,8.02056,1898.1,1898.0,3.1509]
[1742137444344,1.05393,1897.8,1897.7,1.4127]
[1742137444742,1.05393,1897.8,1897.7,0.65546659]
[1742137445044,6.39185,1897.8,1897.4,0.755]
[1742137445247,1.0541,1897.5,1897.4,0.755]
[1742137445447,1.0541,1897.5,1897.4,0.76290201]
[1742137447246,1.0541,1897.5,1897.4,0.00790201]
[1742137447452,4.8111,1897.5,1897.4,0.00790201]
[1742137447752,8.0189,1897.5,1897.4,0.00790201]
[1742137448843,10.5189,1897.5,1897.4,2.01e-06]
[1742137449055,8.0189,1897.5,1897.4,2.01e-06]
[1742137451742,8.0109,1897.5,1897.4,2.01e-06]
[1742137452242,8.0169,1897.5,1897.4,2.01e-06]
[1742137452449,8.0179,1897.5,1897.4,2.01e-06]
[1742137455554,10.5179,1897.5,1897.4,2.01e-06]
[1742137455944,10.60815813,1897.5,1897.4,2.01e-06]
[1742137456253,12.07105813,1897.5,1897.4,2.01e-06]
[1742137456448,17.89706104,1897.5,1897.4,2.01e-06]
[1742137458049,14.14106104,1897.5,1897.4,2.01e-06]
[1742137458248,15.38705822,1897.5,1897.4,2.01e-06]
[1742137458450,17.7968,1897.5,1897.4,2.01e-06]
[1742137458953,15.2968,1897.5,1897.4,2.01e-06]
[1742137460559,15.2958,1897.5,1897.4,2.01e-06]
[1742137460946,17.88605761,1897.5,1897.4,2.01e-06]
[1742137462659,14.14105761,1897.5,1897.4,2.01e-06]
[1742137462856,17.89805761,1897.5,1897.4,2.01e-06]
[1742137463051,15.39805761,1897.5,1897.4,2.01e-06]
[1742137463557,15.3078,1897.5,1897.4,2.01e-06]
[1742137464761,17.8078,1897.5,1897.4,2.01e-06]
[1742137465463,17.89804613,1897.5,1897.4,2.01e-06]
[1742137465762,17.89804907,1897.5,1897.4,2.01e-06]
[1742137466663,1.05432,1897.1,1897.0,2.40744201]
[1742137466861,1.05438,1897.0,1896.9,2.0733]
[1742137467068,4.77361,1897.0,1896.6,0.7093]
[1742137467364,1.05454,1896.7,1896.6,0.7093]
[1742137469865,2.49564,1896.7,1896.6,0.7093]
[1742137470162,1.05454,1896.7,1896.6,2.0972]
[1742137471365,2.49564,1896.7,1896.6,2.0972]
[1742137472268,2.49564,1896.7,1896.6,1.3879]
[1742137472559,1.0546,1896.6,1896.5,0.00790201]
[1742137472768,5.6368,1896.6,1896.5,2.01e-06]
[1742137473864,4.2624,1896.6,1896.5,2.01e-06]
[1742137474064,1.0546,1896.6,1896.5,2.01e-06]
[1742137475157,4.2624,1896.6,1896.5,2.01e-06]
[1742137476468,5.6761,1896.6,1896.5,2.01e-06]
[1742137479669,1.05471,1896.4,1896.3,1.08156201]
[1742137479868,7.99651,1896.4,1896.3,1.08156201]
[1742137480068,7.99651,1896.4,1896.3,0.32546201]
[1742137480868,1.05476,1896.3,1896.2,0.00790201]
[1742137481068,2.43936,1896.3,1896.2,0.00790201]
[1742137481368,1.05476,1896.3,1896.2,0.00790201]
[1742137481568,2.43936,1896.3,1896.2,0.00790201]
[1742137482667,2.43936,1896.3,1896.2,2.01e-06]
[1742137482668,8.26536,1896.3,1896.2,2.01e-06]
[1742137482869,10.76536,1896.3,1896.2,2.01e-06]
[1742137483173,10.85567159,1896.3,1896.2,2.01e-06]
[1742137484166,8.35567721,1896.3,1896.2,2.01e-06]
[1742137484366,8.26536,1896.3,1896.2,2.01e-06]
[1742137485266,11.99136,1896.3,1896.2,1.38610201]
[1742137486272,1.05476,1896.3,1896.2,1.38610201]
[1742137486570,1.05476,1896.3,1896.2,0.67460201]
[1742137486571,2.48306,1896.3,1896.2,0.67460201]
[1742137487675,2.48306,1896.3,1896.2,2.01e-06]
[1742137487872,3.21426,1896.3,1896.2,2.01e-06]
[1742137489570,2.48306,1896.3,1896.2,2.01e-06]
[1742137489967,2.48306,1896.3,1896.2,0.66590201]
[1742137491172,6.20406,1896.3,1896.2,0.66590201]
[1742137496473,6.20406,1896.3,1896.2,2.01e-06]
[1742137496981,12.03006,1896.3,1896.2,2.01e-06]
[1742137498078,13.0278311,1896.3,1896.2,2.01e-06]
[1742137499768,12.03006,1896.3,1896.2,2.01e-06]
[1742137500480,12.01906,1896.3,1896.2,2.01e-06]
[1742137501575,12.01906,1896.3,1896.2,0.75660201]
[1742137501772,12.01906,1896.3,1896.2,2.01e-06]
[1742137502183,13.01755345,1896.3,1896.2,2.01e-06]
[1742137503080,13.10786556,1896.3,1896.2,2.01e-06]
[1742137504184,13.01755345,1896.3,1896.2,2.01e-06]
[1742137505786,13.10786577,1896.3,1896.2,2.01e-06]
[1742137505978,13.01755345,1896.3,1896.2,2.01e-06]
[1742137506486,13.10786483,1896.3,1896.2,2.01e-06]
[1742137506687,1.05482,1896.2,1896.1,4.02e-06]
[1742137506988,6.98132,1896.2,1896.1,4.02e-06]
[1742137507282,10.47981345,1896.2,1896.1,4.02e-06]
[1742137507489,17.30974476,1896.2,1896.1,4.02e-06]
[1742137507785,1.05504,1895.8,1895.7,0.22340402]
[1742137507984,7.96284,1895.8,1895.7,0.22340402]
[1742137508390,9.28944,1895.8,1895.7,0.22340402]
[1742137508582,9.97744,1895.8,1895.7,0.22340402]
[1742137508778,9.97744,1895.8,1895.7,4.02e-06]
[1742137508993,1.0551,1895.7,1895.6,2.01e-06]
[1742137509286,2.3817,1895.7,1895.6,2.01e-06]
[1742137509488,2.47204333,1895.7,1895.6,2.01e-06]
[1742137509792,7.31331367,1895.7,1895.6,2.01e-06]
[1742137509991,4.81331367,1895.7,1895.6,2.01e-06]
[1742137510292,13.13876758,1895.7,1895.6,2.01e-06]
[1742137510683,13.77918771,1895.7,1895.6,2.01e-06]
[1742137511079,13.13876758,1895.7,1895.6,2.01e-06]
[1742137513194,1.05532,1895.3,1895.2,1.02892201]
[1742137513389,7.95512,1895.3,1895.2,1.02892201]
[1742137513788,9.37312,1895.3,1895.2,1.02892201]